fUST/lending_fUST_20250318
["ID","MTS","AMOUNT","RATE_DAILY","PERIOD"]
[356311144,1742243453577,-162.380719,9.31e-05,2]
[356311145,1742243453592,-500.0,9.315e-05,2]
[356311146,1742243453606,-500.0,9.315e-05,2]
[356311147,1742243453620,-500.0,9.315e-05,2]
[356311148,1742243453634,-500.0,9.315e-05,2]
[356311149,1742243453647,-285.74,9.315e-05,2]
[356311150,1742243453661,-500.0,9.315e-05,2]
[356311151,1742243453675,-500.0,9.315e-05,2]
[356311152,1742243453690,-500.0,9.315e-05,2]
[356311153,1742243453704,-500.0,9.315e-05,2]
[356311154,1742243453718,-500.0,9.315e-05,2]
[356311155,1742243453732,-500.0,9.315e-05,2]
[356311156,1742243453745,-500.0,9.315e-05,2]
[356311157,1742243453760,-500.0,9.315e-05,2]
[356311158,1742243453774,-500.0,9.315e-05,2]
[356311159,1742243453789,-1094.61,9.315e-05,2]
[356311160,1742243453805,-500.0,9.315e-05,2]
[356311161,1742243453819,-1047.41,9.315e-05,2]
[356311162,1742243453834,-1128.85,9.315e-05,2]
[356311163,1742243453849,-1565.12,9.315e-05,2]
[356311164,1742243453863,-591.41,9.315e-05,2]
[356311165,1742243453878,-500.0,9.315e-05,2]
[356311166,1742243453893,-500.0,9.315e-05,2]
[356311167,1742243453911,-500.0,9.315e-05,2]
[356311168,1742243453925,-1057.67,9.315e-05,2]
[356311169,1742243453940,-500.0,9.315e-05,2]
[356311170,1742243453955,-500.0,9.315e-05,2]
[356311171,1742243453969,-500.0,9.315e-05,2]
[356311172,1742243453983,-1096.52,9.315e-05,2]
[356311173,1742243453998,-1368.76,9.315e-05,2]
[356311174,1742243454014,-532.78,9.315e-05,2]
[356311175,1742243454029,-744.35,9.315e-05,2]
[356311176,1742243454043,-331.2,9.315e-05,2]
[356311177,1742243454057,-500.0,9.315e-05,2]
[356311178,1742243454072,-500.0,9.315e-05,2]
[356311179,1742243454088,-234.8,9.315e-05,2]
[356311180,1742243454102,-500.0,9.315e-05,2]
[356311181,1742243454116,-289.13,9.315e-05,2]
[356311182,1742243454130,-177.79520085,9.315e-05,2]
[356311183,1742243454144,-278.22196852,9.315e-05,2]
[356311184,1742243454158,-500.0,9.315e-05,2]
[356311185,1742243454172,-651.35,9.315e-05,2]
[356311186,1742243454188,-553.55229947,9.315e-05,2]
[356311187,1742243454204,-500.0,9.315e-05,2]
[356311188,1742243454214,-553.16,9.315e-05,2]
[356311189,1742243454223,-500.0,9.315e-05,2]
[356311190,1742243454232,-500.0,9.315e-05,2]
[356311191,1742243454242,-524.01,9.315e-05,2]
[356311192,1742243454253,-542.02,9.315e-05,2]
[356311193,1742243454263,-500.0,9.315e-05,2]
[356311194,1742243454473,-999.4,9.315e-05,2]
[356311195,1742243454484,-567.02062487,9.315e-05,2]
[356311196,1742243454494,-500.0,9.315e-05,2]
[356311197,1742243454504,-500.0,9.315e-05,2]
[356311198,1742243454514,-8431.49,9.315e-05,2]
[356311199,1742243454523,-500.0,9.315e-05,2]
[356311200,1742243454533,-1860.86,9.315e-05,2]
[356311201,1742243454543,-500.0,9.315e-05,2]
[356311202,1742243454554,-568.50989311,9.315e-05,2]
[356311203,1742243454563,-4892.23,9.315e-05,2]
[356311204,1742243454572,-2012.02,9.315e-05,2]
[356311205,1742243454582,-566.81302546,9.315e-05,2]
[356311206,1742243454591,-500.0,9.315e-05,2]
[356311207,1742243454601,-500.0,9.315e-05,2]
[356311208,1742243454612,-500.0,9.315e-05,2]
[356311209,1742243454623,-500.0,9.315e-05,2]
[356311210,1742243454632,-500.0,9.315e-05,2]
[356311211,1742243454642,-500.0,9.315e-05,2]
[356311212,1742243454652,-500.0,9.315e-05,2]
[356311213,1742243454662,-1316.18,9.315e-05,2]
[356311214,1742243454671,-500.0,9.315e-05,2]
[356311215,1742243454681,-500.0,9.315e-05,2]
[356311216,1742243454690,-500.0,9.315e-05,2]
[356311217,1742243454701,-1829.85,9.315e-05,2]
[356311218,1742243454711,-479.66954955,9.315e-05,2]
[356311219,1742243454720,-500.0,9.315e-05,2]
[356311220,1742243454730,-500.0,9.315e-05,2]
[356311221,1742243454739,-500.0,9.315e-05,2]
[356311222,1742243454749,-500.0,9.315e-05,2]
[356311223,1742243454759,-627.22,9.315e-05,2]
[356311224,1742243454768,-500.0,9.315e-05,2]
[356311225,1742243454778,-500.0,9.315e-05,2]
[356311226,1742243454787,-500.0,9.315e-05,2]
[356311227,1742243454797,-500.0,9.315e-05,2]
[356311228,1742243454807,-3952.01,9.315e-05,2]
[356311229,1742243454817,-500.0,9.315e-05,2]
[356311230,1742243454828,-500.0,9.315e-05,2]
[356311231,1742243454838,-500.0,9.315e-05,2]
[356311232,1742243454848,-512.91308208,9.315e-05,2]
[356311233,1742243454857,-7994.74,9.315e-05,2]
[356311234,1742243454867,-736.49,9.315e-05,2]
[356311235,1742243454876,-718.33,9.315e-05,2]
[356311236,1742243454886,-500.0,9.315e-05,2]
[356311237,1742243454895,-552.52,9.315e-05,2]
[356311238,1742243454904,-500.0,9.315e-05,2]
[356311239,1742243454914,-606.29,9.315e-05,2]
[356311240,1742243454923,-500.0,9.315e-05,2]
[356311241,1742243454932,-500.0,9.315e-05,2]
[356311242,1742243454942,-1420.62,9.315e-05,2]
[356311243,1742243454952,-500.0,9.315e-05,2]
[356311244,1742243454961,-500.0,9.315e-05,2]
[356311245,1742243454971,-500.0,9.315e-05,2]
[356311246,1742243454980,-500.0,9.315e-05,2]
[356311247,1742243454990,-500.0,9.315e-05,2]
[356311248,1742243455000,-500.0,9.315e-05,2]
[356311249,1742243455010,-7705.67,9.315e-05,2]
[356311250,1742243455020,-500.0,9.315e-05,2]
[356311251,1742243455030,-500.0,9.315e-05,2]
[356311252,1742243455040,-1175.79,9.315e-05,2]
[356311253,1742243455049,-500.0,9.315e-05,2]
[356311254,1742243455059,-1092.32,9.315e-05,2]
[356311255,1742243455068,-918.13,9.315e-05,2]
[356311256,1742243455077,-186.73,9.315e-05,2]
[356311257,1742243455087,-500.0,9.315e-05,2]
[356311258,1742243455097,-2684.63,9.315e-05,2]
[356311259,1742243455106,-500.0,9.315e-05,2]
[356311260,1742243455116,-500.0,9.315e-05,2]
[356311261,1742243455125,-500.0,9.315e-05,2]
[356311262,1742243455135,-500.0,9.315e-05,2]
[356311263,1742243455145,-500.0,9.315e-05,2]
[356311264,1742243455154,-3786.99,9.315e-05,2]
[356311265,1742243455164,-196.86465552,9.315e-05,2]
[356311266,1742243455173,-500.0,9.315e-05,2]
[356311267,1742243455183,-500.0,9.315e-05,2]
[356311268,1742243455193,-6269.22,9.315e-05,2]
[356311269,1742243455203,-500.0,9.315e-05,2]
[356311270,1742243455213,-3048.37,9.315e-05,2]
[356311271,1742243455223,-326.10696375,9.315e-05,2]
[356311272,1742243455232,-500.0,9.315e-05,2]
[356311273,1742243455242,-3970.67,9.315e-05,2]
[356311274,1742243455252,-13026.42,9.315e-05,2]
[356311275,1742243455262,-500.0,9.315e-05,2]
[356311276,1742243455272,-500.0,9.315e-05,2]
[356311277,1742243455282,-500.0,9.315e-05,2]
[356311278,1742243455291,-585.55,9.315e-05,2]
[356311279,1742243455301,-500.0,9.315e-05,2]
[356311280,1742243455311,-1435.09,9.315e-05,2]
[356311281,1742243455320,-500.0,9.315e-05,2]
[356311282,1742243455330,-500.0,9.315e-05,2]
[356311283,1742243455339,-500.0,9.315e-05,2]
[356311284,1742243455350,-500.0,9.315e-05,2]
[356311285,1742243455359,-15391.43,9.315e-05,2]
[356311286,1742243455369,-500.0,9.315e-05,2]
[356311287,1742243455379,-3128.85,9.315e-05,2]
[356311288,1742243455388,-500.0,9.315e-05,2]
[356311289,1742243455398,-1677.7,9.315e-05,2]
[356311290,1742243455408,-500.0,9.315e-05,2]
[356311291,1742243455417,-500.0,9.315e-05,2]
[356311292,1742243455427,-500.0,9.315e-05,2]
[356311293,1742243455437,-856.61,9.315e-05,2]
[356311294,1742243455447,-500.0,9.315e-05,2]
[356311295,1742243455456,-500.0,9.315e-05,2]
[356311296,1742243455466,-908.93,9.315e-05,2]
[356311297,1742243455478,-1749.85,9.315e-05,2]
[356311298,1742243455488,-1232.66,9.315e-05,2]
[356311299,1742243455498,-500.0,9.315e-05,2]
[356311300,1742243455508,-500.0,9.315e-05,2]
[356311301,1742243455519,-2995.73,9.315e-05,2]
[356311302,1742243455529,-3391.19,9.315e-05,2]
[356311303,1742243455538,-1168.28,9.315e-05,2]
[356311304,1742243455549,-920.76,9.315e-05,2]
[356311305,1742243455559,-5734.43,9.315e-05,2]
[356311306,1742243455569,-730.67,9.315e-05,2]
[356311307,1742243455578,-1018.67,9.315e-05,2]
[356311308,1742243455587,-500.0,9.315e-05,2]
[356311309,1742243455597,-500.0,9.315e-05,2]
[356311310,1742243455607,-190.47151006,9.315e-05,2]
[356311311,1742243455617,-110707.11,9.315e-05,2]
[356311312,1742243455627,-11406.95,9.315e-05,2]
[356311313,1742243455636,-500.0,9.315e-05,2]
[356311314,1742243455646,-3624.19,9.315e-05,2]
[356311315,1742243455655,-500.0,9.315e-05,2]
[356311316,1742243455665,-500.0,9.315e-05,2]
[356311317,1742243455675,-809.34,9.315e-05,2]
[356311318,1742243455685,-893.14,9.315e-05,2]
[356311319,1742243455694,-500.0,9.315e-05,2]
[356311320,1742243455704,-6164.8,9.315e-05,2]
[356311321,1742243455714,-500.0,9.315e-05,2]
[356311322,1742243455723,-11345.71,9.315e-05,2]
[356311323,1742243455734,-500.0,9.315e-05,2]
[356311324,1742243455744,-500.0,9.315e-05,2]
[356311325,1742243455754,-500.0,9.315e-05,2]
[356311326,1742243455763,-500.0,9.315e-05,2]
[356311327,1742243455773,-1021.16,9.315e-05,2]
[356311328,1742243455782,-500.0,9.315e-05,2]
[356311329,1742243455791,-500.0,9.315e-05,2]
[356311330,1742243455801,-600.0,9.468e-05,2]
[356311331,1742243455811,-3000.0,9.489e-05,2]
[356311332,1742243455820,-1643.4389025,9.567e-05,2]
[356311333,1742243455830,-600.0,9.567e-05,2]
[356311334,1742243455839,-151.0,9.58e-05,2]
[356311335,1742243455849,-1000.0,9.588e-05,2]
[356311336,1742243455859,-500.0,9.589e-05,2]
[356311337,1742243455869,-500.0,9.589e-05,2]
[356311338,1742243455878,-500.0,9.589e-05,2]
[356311339,1742243455888,-500.0,9.589e-05,2]
[356311340,1742243455898,-577.19,9.589e-05,2]
[356311341,1742243455907,-356.84324081,9.589e-05,2]
[356311342,1742243455917,-500.0,9.589e-05,2]
[356311343,1742243455926,-500.0,9.589e-05,2]
[356311344,1742243455936,-500.0,9.589e-05,2]
[356311345,1742243455945,-1094.61,9.589e-05,2]
[356311346,1742243455955,-500.0,9.589e-05,2]
[356311347,1742243455965,-1047.41,9.589e-05,2]
[356311348,1742243455974,-1128.85,9.589e-05,2]
[356311349,1742243455984,-1565.12,9.589e-05,2]
[356311350,1742243455995,-591.41,9.589e-05,2]
[356311351,1742243456005,-500.0,9.589e-05,2]
[356311352,1742243456015,-500.0,9.589e-05,2]
[356311353,1742243456024,-500.0,9.589e-05,2]
[356311354,1742243456034,-1057.67,9.589e-05,2]
[356311355,1742243456044,-500.0,9.589e-05,2]
[356311356,1742243456053,-500.0,9.589e-05,2]
[356311357,1742243456063,-500.0,9.589e-05,2]
[356311358,1742243456072,-1096.52,9.589e-05,2]
[356311359,1742243456081,-1368.76,9.589e-05,2]
[356311360,1742243456091,-744.35,9.589e-05,2]
[356311361,1742243456100,-500.0,9.589e-05,2]
[356311362,1742243456110,-651.35,9.589e-05,2]
[356311363,1742243456120,-500.0,9.589e-05,2]
[356311364,1742243456130,-553.16,9.589e-05,2]
[356311365,1742243456139,-500.0,9.589e-05,2]
[356311366,1742243456149,-500.0,9.589e-05,2]
[356311367,1742243456159,-524.01,9.589e-05,2]
[356311368,1742243456168,-999.4,9.589e-05,2]
[356311369,1742243456178,-500.0,9.589e-05,2]
[356311370,1742243456187,-8431.49,9.589e-05,2]
[356311371,1742243456197,-213.78,9.589e-05,2]
[356311372,1742243456207,-1860.86,9.589e-05,2]
[356311373,1742243456217,-4892.23,9.589e-05,2]
[356311374,1742243456228,-2012.02,9.589e-05,2]
[356311375,1742243456239,-500.0,9.589e-05,2]
[356311376,1742243456249,-500.0,9.589e-05,2]
[356311377,1742243456259,-342.0279722,9.589e-05,2]
[356311378,1742243456268,-404.3285762,9.589e-05,2]
[356311379,1742243456278,-500.0,9.589e-05,2]
[356311380,1742243456288,-535.75144631,9.589e-05,2]
[356311381,1742243456297,-1316.18,9.589e-05,2]
[356311382,1742243456307,-500.0,9.589e-05,2]
[356311383,1742243456318,-500.0,9.589e-05,2]
[356311384,1742243456328,-500.0,9.589e-05,2]
[356311385,1742243456338,-1829.85,9.589e-05,2]
[356311386,1742243456348,-500.0,9.589e-05,2]
[356311387,1742243456357,-500.0,9.589e-05,2]
[356311388,1742243456367,-519.3118171,9.589e-05,2]
[356311389,1742243456376,-627.22,9.589e-05,2]
[356311390,1742243456386,-484.55376673,9.589e-05,2]
[356311391,1742243456396,-500.0,9.589e-05,2]
[356311392,1742243456405,-3952.01,9.589e-05,2]
[356311393,1742243456415,-500.0,9.589e-05,2]
[356311394,1742243456424,-7994.74,9.589e-05,2]
[356311395,1742243456434,-736.49,9.589e-05,2]
[356311396,1742243456443,-718.33,9.589e-05,2]
[356311397,1742243456453,-552.52,9.589e-05,2]
[356311398,1742243456462,-606.29,9.589e-05,2]
[356311399,1742243456472,-500.0,9.589e-05,2]
[356311400,1742243456484,-500.0,9.589e-05,2]
[356311401,1742243456493,-1420.62,9.589e-05,2]
[356311402,1742243456503,-334.27,9.589e-05,2]
[356311403,1742243456512,-500.0,9.589e-05,2]
[356311404,1742243456522,-580.98615911,9.589e-05,2]
[356311405,1742243456533,-500.0,9.589e-05,2]
[356311406,1742243456542,-500.0,9.589e-05,2]
[356311407,1742243456552,-7705.67,9.589e-05,2]
[356311408,1742243456561,-500.0,9.589e-05,2]
[356311409,1742243456571,-500.0,9.589e-05,2]
[356311410,1742243456580,-1175.79,9.589e-05,2]
[356311411,1742243456590,-512.12502917,9.589e-05,2]
[356311412,1742243456600,-1092.32,9.589e-05,2]
[356311413,1742243456610,-918.13,9.589e-05,2]
[356311414,1742243456620,-2684.63,9.589e-05,2]
[356311415,1742243456630,-500.0,9.589e-05,2]
[356311416,1742243456639,-500.0,9.589e-05,2]
[356311417,1742243456648,-500.0,9.589e-05,2]
[356311418,1742243456658,-3786.99,9.589e-05,2]
[356311419,1742243456667,-500.0,9.589e-05,2]
[356311420,1742243456677,-500.0,9.589e-05,2]
[356311421,1742243456687,-6269.22,9.589e-05,2]
[356311422,1742243456697,-500.0,9.589e-05,2]
[356311423,1742243456707,-3048.37,9.589e-05,2]
[356311424,1742243456716,-500.0,9.589e-05,2]
[356311425,1742243456726,-13026.42,9.589e-05,2]
[356311426,1742243456735,-3970.67,9.589e-05,2]
[356311427,1742243456745,-500.0,9.589e-05,2]
[356311428,1742243456754,-500.0,9.589e-05,2]
[356311429,1742243456764,-500.0,9.589e-05,2]
[356311430,1742243456773,-585.55,9.589e-05,2]
[356311431,1742243456783,-1435.09,9.589e-05,2]
[356311432,1742243456792,-500.0,9.589e-05,2]
[356311433,1742243456802,-500.0,9.589e-05,2]
[356311434,1742243456812,-15391.43,9.589e-05,2]
[356311435,1742243456822,-3128.85,9.589e-05,2]
[356311436,1742243456831,-500.0,9.589e-05,2]
[356311437,1742243456841,-1677.7,9.589e-05,2]
[356311438,1742243456850,-385.4720086,9.589e-05,2]
[356311439,1742243456859,-500.0,9.589e-05,2]
[356311440,1742243456869,-856.61,9.589e-05,2]
[356311441,1742243456878,-500.0,9.589e-05,2]
[356311442,1742243456888,-500.0,9.589e-05,2]
[356311443,1742243456898,-908.93,9.589e-05,2]
[356311444,1742243456907,-1749.85,9.589e-05,2]
[356311445,1742243456916,-1232.66,9.589e-05,2]
[356311446,1742243456926,-500.0,9.589e-05,2]
[356311447,1742243456936,-500.0,9.589e-05,2]
[356311448,1742243456946,-2995.73,9.589e-05,2]
[356311449,1742243456955,-3391.19,9.589e-05,2]
[356311450,1742243456965,-1168.28,9.589e-05,2]
[356311451,1742243456975,-920.76,9.589e-05,2]
[356311452,1742243456984,-5734.43,9.589e-05,2]
[356311453,1742243456994,-730.67,9.589e-05,2]
[356311454,1742243457003,-1018.67,9.589e-05,2]
[356311455,1742243457013,-552.47495648,9.589e-05,2]
[356311456,1742243457022,-500.0,9.589e-05,2]
[356311457,1742243457032,-110707.11,9.589e-05,2]
[356311458,1742243457042,-11406.95,9.589e-05,2]
[356311459,1742243457051,-500.0,9.589e-05,2]
[356311460,1742243457061,-3624.19,9.589e-05,2]
[356311461,1742243457070,-500.0,9.589e-05,2]
[356311462,1742243457201,-500.0,9.589e-05,2]
[356311463,1742243457216,-809.34,9.589e-05,2]
[356311464,1742243457226,-893.14,9.589e-05,2]
[356311465,1742243457236,-500.0,9.589e-05,2]
[356311466,1742243457246,-6164.8,9.589e-05,2]
[356311467,1742243457255,-500.0,9.589e-05,2]
[356311468,1742243457265,-11345.71,9.589e-05,2]
[356311469,1742243457275,-500.0,9.589e-05,2]
[356311470,1742243457284,-500.0,9.589e-05,2]
[356311471,1742243457294,-500.0,9.589e-05,2]
[356311472,1742243457303,-500.0,9.589e-05,2]
[356311473,1742243457312,-1021.16,9.589e-05,2]
[356311474,1742243457322,-500.0,9.589e-05,2]
[356311475,1742243457331,-500.0,9.589e-05,2]
[356311476,1742243457341,-600.0,9.666e-05,2]
[356311477,1742243457350,-797.99846631,9.764e-05,2]
[356311478,1742243457360,-587.0,9.82e-05,2]
[356311479,1742243457369,-168.3888056,9.858e-05,2]
[356311480,1742243457378,-151.0,9.862e-05,2]
[356311481,1742243457388,-151.0,9.863e-05,2]
[356311482,1742243457397,-500.0,9.863e-05,2]
[356311483,1742243457407,-500.0,9.863e-05,2]
[356311484,1742243457418,-500.0,9.863e-05,2]
[356311485,1742243457427,-500.0,9.863e-05,2]
[356311486,1742243457437,-500.0,9.863e-05,2]
[356311487,1742243457447,-317.0,9.863e-05,2]
[356311488,1742243457456,-317.0,9.863e-05,2]
[356311489,1742243457466,-317.0,9.863e-05,2]
[356311490,1742243457478,-317.0,9.863e-05,2]
[356311491,1742243457487,-500.0,9.863e-05,2]
[356311492,1742243457496,-317.0,9.863e-05,2]
[356311493,1742243457506,-317.0,9.863e-05,2]
[356311494,1742243457516,-317.0,9.863e-05,2]
[356311495,1742243457526,-317.0,9.863e-05,2]
[356311496,1742243457535,-317.0,9.863e-05,2]
[356311497,1742243457545,-322.36067826,9.863e-05,2]
[356311498,1742243457557,-1094.61,9.863e-05,2]
[356311499,1742243457566,-500.0,9.863e-05,2]
[356311500,1742243457575,-1047.41,9.863e-05,2]
[356311501,1742243457584,-1128.85,9.863e-05,2]
[356311502,1742243457594,-1565.12,9.863e-05,2]
[356311503,1742243457603,-591.41,9.863e-05,2]
[356311504,1742243457612,-500.0,9.863e-05,2]
[356311505,1742243457622,-500.0,9.863e-05,2]
[356311506,1742243457631,-500.0,9.863e-05,2]
[356311507,1742243457642,-1057.67,9.863e-05,2]
[356311508,1742243457651,-526.81763957,9.863e-05,2]
[356311509,1742243457660,-500.0,9.863e-05,2]
[356311510,1742243457670,-500.0,9.863e-05,2]
[356311511,1742243457682,-1096.52,9.863e-05,2]
[356311512,1742243457692,-1368.76,9.863e-05,2]
[356311513,1742243457703,-744.35,9.863e-05,2]
[356311514,1742243457713,-500.0,9.863e-05,2]
[356311515,1742243457723,-651.35,9.863e-05,2]
[356311516,1742243457733,-500.0,9.863e-05,2]
[356311517,1742243457743,-553.16,9.863e-05,2]
[356311518,1742243457753,-500.0,9.863e-05,2]
[356311519,1742243457762,-500.0,9.863e-05,2]
[356311520,1742243457771,-524.01,9.863e-05,2]
[356311521,1742243457780,-999.4,9.863e-05,2]
[356311522,1742243457788,-500.0,9.863e-05,2]
[356311523,1742243457797,-8431.49,9.863e-05,2]
[356311524,1742243457806,-1860.86,9.863e-05,2]
[356311525,1742243457815,-4892.23,9.863e-05,2]
[356311526,1742243457825,-2012.02,9.863e-05,2]
[356311527,1742243457833,-199.36738,9.863e-05,2]
[356311528,1742243457842,-500.0,9.863e-05,2]
[356311529,1742243457851,-1316.18,9.863e-05,2]
[356311530,1742243457860,-500.0,9.863e-05,2]
[356311531,1742243457869,-500.0,9.863e-05,2]
[356311532,1742243457879,-1829.85,9.863e-05,2]
[356311533,1742243457888,-500.0,9.863e-05,2]
[356311534,1742243457897,-627.22,9.863e-05,2]
[356311535,1742243457906,-500.0,9.863e-05,2]
[356311536,1742243457915,-3952.01,9.863e-05,2]
[356311537,1742243457924,-500.0,9.863e-05,2]
[356311538,1742243457933,-7994.74,9.863e-05,2]
[356311539,1742243457942,-736.49,9.863e-05,2]
[356311540,1742243457952,-718.33,9.863e-05,2]
[356311541,1742243457962,-552.52,9.863e-05,2]
[356311542,1742243457971,-606.29,9.863e-05,2]
[356311543,1742243457979,-500.0,9.863e-05,2]
[356311544,1742243457988,-500.0,9.863e-05,2]
[356311545,1742243457998,-1420.62,9.863e-05,2]
[356311546,1742243458007,-493.02,9.863e-05,2]
[356311547,1742243458016,-500.0,9.863e-05,2]
[356311548,1742243458025,-7705.67,9.863e-05,2]
[356311549,1742243458034,-1175.79,9.863e-05,2]
[356311550,1742243458043,-1092.32,9.863e-05,2]
[356311551,1742243458052,-918.13,9.863e-05,2]
[356311552,1742243458062,-2684.63,9.863e-05,2]
[356311553,1742243458071,-500.0,9.863e-05,2]
[356311554,1742243458081,-500.0,9.863e-05,2]
[356311555,1742243458090,-500.0,9.863e-05,2]
[356311556,1742243458099,-3786.99,9.863e-05,2]
[356311557,1742243458109,-500.0,9.863e-05,2]
[356311558,1742243458118,-6269.22,9.863e-05,2]
[356311559,1742243458127,-500.0,9.863e-05,2]
[356311560,1742243458137,-3048.37,9.863e-05,2]
[356311561,1742243458146,-500.0,9.863e-05,2]
[356311562,1742243458155,-13026.42,9.863e-05,2]
[356311563,1742243458164,-3970.67,9.863e-05,2]
[356311564,1742243458174,-500.0,9.863e-05,2]
[356311565,1742243458183,-532.06581926,9.863e-05,2]
[356311566,1742243458192,-510.97905816,9.863e-05,2]
[356311567,1742243458202,-585.55,9.863e-05,2]
[356311568,1742243458212,-1435.09,9.863e-05,2]
[356311569,1742243458221,-500.0,9.863e-05,2]
[356311570,1742243458230,-500.0,9.863e-05,2]
[356311571,1742243458240,-15391.43,9.863e-05,2]
[356311572,1742243458249,-3128.85,9.863e-05,2]
[356311573,1742243458259,-506.82486111,9.863e-05,2]
[356311574,1742243458269,-1677.7,9.863e-05,2]
[356311575,1742243458278,-511.74054842,9.863e-05,2]
[356311576,1742243458287,-856.61,9.863e-05,2]
[356311577,1742243458296,-500.0,9.863e-05,2]
[356311578,1742243458306,-500.0,9.863e-05,2]
[356311579,1742243458315,-908.93,9.863e-05,2]
[356311580,1742243458324,-1749.85,9.863e-05,2]
[356311581,1742243458334,-1232.66,9.863e-05,2]
[356311582,1742243458343,-500.0,9.863e-05,2]
[356311583,1742243458353,-404.87116572,9.863e-05,2]
[356311584,1742243458362,-2995.73,9.863e-05,2]
[356311585,1742243458371,-3391.19,9.863e-05,2]
[356311586,1742243458381,-1168.28,9.863e-05,2]
[356311587,1742243458391,-920.76,9.863e-05,2]
[356311588,1742243458399,-5734.43,9.863e-05,2]
[356311589,1742243458409,-730.67,9.863e-05,2]
[356311590,1742243458418,-1018.67,9.863e-05,2]
[356311591,1742243458428,-500.0,9.863e-05,2]
[356311592,1742243458437,-110707.11,9.863e-05,2]
[356311593,1742243458446,-11406.95,9.863e-05,2]
[356311594,1742243458455,-500.0,9.863e-05,2]
[356311595,1742243458465,-3624.19,9.863e-05,2]
[356311596,1742243458476,-500.0,9.863e-05,2]
[356311597,1742243458485,-809.34,9.863e-05,2]
[356311598,1742243458494,-893.14,9.863e-05,2]
[356311599,1742243458503,-6164.8,9.863e-05,2]
[356311600,1742243458513,-500.0,9.863e-05,2]
[356311601,1742243458523,-500.0,9.863e-05,2]
[356311602,1742243458532,-11345.71,9.863e-05,2]
[356311603,1742243458541,-582.0,9.863e-05,2]
[356311604,1742243458550,-500.0,9.863e-05,2]
[356311605,1742243458560,-500.0,9.863e-05,2]
[356311606,1742243458570,-500.0,9.863e-05,2]
[356311607,1742243458579,-1021.16,9.863e-05,2]
[356311608,1742243458588,-500.0,9.863e-05,2]
[356311609,1742243458598,-500.0,9.863e-05,2]
[356311610,1742243458607,-8058.69520607,9.9e-05,3]
[356311611,1742243458617,-378.79345218,0.0001,2]
[356311612,1742243458626,-277.94919909,0.0001,2]
[356311613,1742243458635,-600.0,0.0001,3]
[356311614,1742243458645,-15518.09074065,0.0001,2]
[356311615,1742243458654,-500.0,0.0001,2]
[356311616,1742243458663,-10000.0,0.0001,4]
[356311617,1742243458672,-700.0,0.0001,3]
[356311618,1742243458681,-1000.0,0.0001,2]
[356311619,1742243458690,-2200.0,0.0001,2]
[356311620,1742243458700,-1000.0,0.0001,2]
[356311621,1742243458709,-1000.0,0.0001,2]
[356311622,1742243458719,-1000.0,0.0001,2]
[356311623,1742243458728,-1000.0,0.0001,2]
[356311624,1742243458738,-1000.0,0.0001,2]
[356311625,1742243458747,-712.73325523,0.0001,2]
[356311626,1742243458757,-500.0,0.0001,2]
[356311627,1742243458767,-500.0,0.0001,2]
[356311628,1742243458777,-500.0,0.0001,2]
[356311629,1742243458787,-37217.17377502,0.0001,2]
[356311630,1742243458796,-37217.17377498,0.0001,2]
[356311631,1742243458805,-37217.17377498,0.0001,2]
[356311632,1742243458814,-37217.17377498,0.0001,2]
[356311633,1742243458824,-37217.17377498,0.0001,2]
[356311634,1742243458833,-37217.17377498,0.0001,2]
[356311635,1742243458842,-37217.17377498,0.0001,2]
[356311636,1742243458852,-21565.01828787,0.0001,2]
[356311637,1742243459725,-520.38657394,8.219e-05,2]
[356311638,1742243459735,-360.66342606,8.219e-05,2]
[356311639,1742243459747,-139.33657394,8.219e-05,2]
[356311640,1742243459756,-500.0,8.219e-05,2]
[356311641,1742243459766,-500.0,8.219e-05,2]
[356311642,1742243459775,-500.0,8.219e-05,2]
[356311643,1742243459785,-500.0,8.219e-05,2]